[Event "Early-Titled-Tuesday-Blitz-January-23-2024"]
[Site "Chess.com"]
[Date "2024.01.23"]
[Round "7"]
[White "SanchezKelvin"]
[Black "zurzan"]
[Result "0-1"]
[WhiteElo "2544"]
[BlackElo "2045"]
[TimeControl "180+1"]
[EndTime "9:16:22 PST"]
[Termination "zurzan won on time"]

1. e4 {[%clk 0:01:40.1]} 1... c5 {[%clk 0:02:58.6]} 2. Nf3 {[%clk 0:01:25.7]}
2... g6 {[%clk 0:02:58.7]} 3. d4 {[%clk 0:01:24.8]} 3... cxd4 {[%clk 0:02:59.2]}
4. Qxd4 {[%clk 0:01:25.7]} 4... Nf6 {[%clk 0:02:57.5]} 5. e5 {[%clk 0:01:26]}
5... Nc6 {[%clk 0:02:57.6]} 6. Qa4 {[%clk 0:01:24.4]} 6... Nd5 {[%clk
0:02:55.2]} 7. Qe4 {[%clk 0:01:17]} 7... Nc7 {[%clk 0:02:44.7]} 8. Nc3 {[%clk
0:01:11.5]} 8... Bg7 {[%clk 0:02:42.5]} 9. Bf4 {[%clk 0:01:10.4]} 9... O-O
{[%clk 0:02:36.4]} 10. O-O-O {[%clk 0:01:10.4]} 10... Ne6 {[%clk 0:02:34.6]} 11.
Be3 {[%clk 0:01:10]} 11... Qa5 {[%clk 0:02:30.5]} 12. h4 {[%clk 0:01:09.4]}
12... h5 {[%clk 0:02:24.9]} 13. a3 {[%clk 0:00:59.7]} 13... Nxe5 {[%clk
0:02:20]} 14. Rd5 {[%clk 0:00:58.9]} 14... Qc7 {[%clk 0:02:07.4]} 15. Nxe5
{[%clk 0:00:58.3]} 15... d6 {[%clk 0:01:55.5]} 16. Nf3 {[%clk 0:00:53.7]} 16...
Bxc3 {[%clk 0:01:53]} 17. bxc3 {[%clk 0:00:42.8]} 17... Qxc3 {[%clk 0:01:53.9]}
18. Bd4 {[%clk 0:00:41.7]} 18... Qxa3+ {[%clk 0:01:53.5]} 19. Bb2 {[%clk
0:00:41.6]} 19... Qa2 {[%clk 0:01:48.2]} 20. Bc4 {[%clk 0:00:25.1]} 20... Qa4
{[%clk 0:01:47.5]} 21. Bd3 {[%clk 0:00:20.5]} 21... Qxe4 {[%clk 0:01:46.9]} 22.
Bxe4 {[%clk 0:00:16.7]} 22... Bd7 {[%clk 0:01:46.6]} 23. Rd3 {[%clk 0:00:15.2]}
23... Bb5 {[%clk 0:01:45.7]} 24. Re3 {[%clk 0:00:14.9]} 24... Rab8 {[%clk
0:01:43.9]} 25. Bxg6 {[%clk 0:00:11.9]} 25... Nf4 {[%clk 0:01:39.5]} 26. Be4
{[%clk 0:00:11.7]} 26... Nxg2 {[%clk 0:01:38.6]} 27. Rg1 {[%clk 0:00:11.7]}
27... f5 {[%clk 0:01:33.2]} 28. Rxg2+ {[%clk 0:00:11.8]} 28... Kh7 {[%clk
0:01:31.5]} 29. Ng5+ {[%clk 0:00:11.5]} 29... Kh6 {[%clk 0:01:31.3]} 30. Bd5
{[%clk 0:00:10.1]} 30... Be8 {[%clk 0:01:24.7]} 0-1

[Event "Early-Titled-Tuesday-Blitz-January-23-2024"]
[Site "Chess.com"]
[Date "2024.01.23"]
[Round "7"]
[White "MVM2008"]
[Black "N4700000"]
[Result "1-0"]
[WhiteElo "2561"]
[BlackElo "2418"]
[TimeControl "180+1"]
[EndTime "9:16:26 PST"]
[Termination "MVM2008 won by checkmate"]

1. e4 {[%clk 0:03:00]} 1... e6 {[%clk 0:02:59.5]} 2. d4 {[%clk 0:02:58.1]} 2...
d5 {[%clk 0:02:59.5]} 3. Nd2 {[%clk 0:02:58.7]} 3... c5 {[%clk 0:02:58.6]} 4. c3
{[%clk 0:02:58.6]} 4... cxd4 {[%clk 0:02:48.4]} 5. cxd4 {[%clk 0:02:59.5]} 5...
dxe4 {[%clk 0:02:47.5]} 6. Nxe4 {[%clk 0:03:00.4]} 6... Bb4+ {[%clk 0:02:46.9]}
7. Nc3 {[%clk 0:03:00.1]} 7... Nf6 {[%clk 0:02:44.3]} 8. Nf3 {[%clk 0:03:00.1]}
8... O-O {[%clk 0:02:43.3]} 9. Bd3 {[%clk 0:02:59.2]} 9... Nc6 {[%clk
0:02:42.6]} 10. a3 {[%clk 0:02:59.7]} 10... Be7 {[%clk 0:02:30.1]} 11. Bg5
{[%clk 0:02:58.4]} 11... b6 {[%clk 0:02:27.8]} 12. h4 {[%clk 0:02:57.4]} 12...
Bb7 {[%clk 0:02:24.3]} 13. Bxf6 {[%clk 0:02:54.9]} 13... Bxf6 {[%clk 0:02:20.6]}
14. Bxh7+ {[%clk 0:02:55.3]} 14... Kxh7 {[%clk 0:01:32.9]} 15. Ng5+ {[%clk
0:02:54.4]} 15... Kh6 {[%clk 0:01:31.4]} 16. Qd3 {[%clk 0:02:28]} 16... g6
{[%clk 0:01:19.5]} 17. h5 {[%clk 0:02:26.6]} 17... Bxg5 {[%clk 0:01:04.4]} 18.
hxg6+ {[%clk 0:02:25.2]} 18... Kg7 {[%clk 0:00:35.5]} 19. Rh7+ {[%clk
0:02:23.5]} 19... Kf6 {[%clk 0:00:33.1]} 20. Qf3+ {[%clk 0:02:04]} 20... Ke7
{[%clk 0:00:31.7]} 21. Rxf7+ {[%clk 0:02:00.8]} 21... Rxf7 {[%clk 0:00:22.7]}
22. Qxf7+ {[%clk 0:02:01.7]} 22... Kd6 {[%clk 0:00:22.8]} 23. Nb5+ {[%clk
0:01:55.3]} 23... Kd5 {[%clk 0:00:22]} 24. Qxb7 {[%clk 0:01:51.9]} 24... Rc8
{[%clk 0:00:16.7]} 25. Nc3+ {[%clk 0:01:48.2]} 25... Kc4 {[%clk 0:00:15.7]} 26.
Qa6+ {[%clk 0:01:44.6]} 26... Kxd4 {[%clk 0:00:14.2]} 27. Qb5 {[%clk 0:01:30.3]}
27... Bd2+ {[%clk 0:00:06.1]} 28. Kxd2 {[%clk 0:01:25.2]} 28... Ne5 {[%clk
0:00:06.1]} 29. Rd1 {[%clk 0:01:14.8]} 29... Qg5+ {[%clk 0:00:02.8]} 30. Ke1+
{[%clk 0:01:12.5]} 30... Nd3+ {[%clk 0:00:02]} 31. Rxd3# {[%clk 0:01:12.9]} 1-0

[Event "Early-Titled-Tuesday-Blitz-January-23-2024"]
[Site "Chess.com"]
[Date "2024.01.23"]
[Round "7"]
[White "KNVB"]
[Black "TheNextLevelFan"]
[Result "1-0"]
[WhiteElo "2757"]
[BlackElo "2566"]
[TimeControl "180+1"]
[EndTime "9:16:29 PST"]
[Termination "KNVB won on time"]

1. d4 {[%clk 0:03:00.9]} 1... d5 {[%clk 0:02:59.8]} 2. Bf4 {[%clk 0:03:00.8]}
2... Nf6 {[%clk 0:02:59.5]} 3. e3 {[%clk 0:03:01.2]} 3... e6 {[%clk 0:03:00]} 4.
Nf3 {[%clk 0:03:00.8]} 4... Bd6 {[%clk 0:03:00.5]} 5. Nbd2 {[%clk 0:03:01.3]}
5... O-O {[%clk 0:02:59.6]} 6. Bd3 {[%clk 0:02:59.3]} 6... c5 {[%clk 0:02:59.2]}
7. c3 {[%clk 0:02:59.4]} 7... Nc6 {[%clk 0:02:59.2]} 8. Bg3 {[%clk 0:02:59.4]}
8... b6 {[%clk 0:02:58.7]} 9. e4 {[%clk 0:02:59.4]} 9... Be7 {[%clk 0:02:48.4]}
10. e5 {[%clk 0:02:59.6]} 10... Nh5 {[%clk 0:02:40.6]} 11. Ng5 {[%clk
0:02:59.9]} 11... Bxg5 {[%clk 0:02:34.5]} 12. Qxh5 {[%clk 0:02:59.5]} 12... g6
{[%clk 0:02:35.2]} 13. Qe2 {[%clk 0:02:59.9]} 13... cxd4 {[%clk 0:02:31.2]} 14.
h4 {[%clk 0:03:00.5]} 14... Bh6 {[%clk 0:02:05.3]} 15. h5 {[%clk 0:02:59.4]}
15... g5 {[%clk 0:01:53.2]} 16. Nf3 {[%clk 0:02:59.1]} 16... dxc3 {[%clk
0:01:48.9]} 17. bxc3 {[%clk 0:03:00]} 17... f5 {[%clk 0:01:23.2]} 18. exf6
{[%clk 0:03:00]} 18... Qxf6 {[%clk 0:01:22.9]} 19. O-O {[%clk 0:03:00]} 19...
Bg7 {[%clk 0:01:11.2]} 20. Bb5 {[%clk 0:02:49.7]} 20... Bd7 {[%clk 0:01:05.4]}
21. Rfe1 {[%clk 0:02:49.5]} 21... Rae8 {[%clk 0:01:00.6]} 22. Bxc6 {[%clk
0:02:39.3]} 22... Bxc6 {[%clk 0:01:00.7]} 23. Be5 {[%clk 0:02:39.7]} 23... Qe7
{[%clk 0:00:53.9]} 24. Nd4 {[%clk 0:02:23.9]} 24... Bd7 {[%clk 0:00:52.2]} 25.
Qg4 {[%clk 0:02:10.4]} 25... h6 {[%clk 0:00:39.9]} 26. g3 {[%clk 0:01:54.2]}
26... Bxe5 {[%clk 0:00:34]} 27. Rxe5 {[%clk 0:01:54.3]} 27... Qf6 {[%clk
0:00:34.6]} 28. Qe2 {[%clk 0:01:50.1]} 28... Rf7 {[%clk 0:00:31.2]} 29. Re1
{[%clk 0:01:39.8]} 29... Ref8 {[%clk 0:00:22.3]} 30. f3 {[%clk 0:01:39.9]} 30...
Kg7 {[%clk 0:00:16.6]} 31. Qd3 {[%clk 0:01:18.4]} 31... Rc8 {[%clk 0:00:16.2]}
32. Rxe6 {[%clk 0:01:10]} 32... Bxe6 {[%clk 0:00:11.8]} 33. Rxe6 {[%clk
0:01:10.9]} 1-0

[Event "Early-Titled-Tuesday-Blitz-January-23-2024"]
[Site "Chess.com"]
[Date "2024.01.23"]
[Round "7"]
[White "starworld123"]
[Black "Zavgorodniy_Sergiy"]
[Result "1-0"]
[WhiteElo "2848"]
[BlackElo "2632"]
[TimeControl "180+1"]
[EndTime "9:16:31 PST"]
[Termination "starworld123 won by resignation"]

1. Nf3 {[%clk 0:02:55.4]} 1... Nf6 {[%clk 0:02:59.1]} 2. b3 {[%clk 0:02:53.2]}
2... d6 {[%clk 0:02:58]} 3. d4 {[%clk 0:02:51.7]} 3... Bg4 {[%clk 0:02:56.8]} 4.
Bb2 {[%clk 0:02:50.1]} 4... Bxf3 {[%clk 0:02:54.5]} 5. exf3 {[%clk 0:02:51]}
5... d5 {[%clk 0:02:54.4]} 6. Bd3 {[%clk 0:02:50.3]} 6... e6 {[%clk 0:02:52.6]}
7. O-O {[%clk 0:02:49.1]} 7... Nbd7 {[%clk 0:02:50.9]} 8. f4 {[%clk 0:02:46.2]}
8... g6 {[%clk 0:02:51.1]} 9. Nd2 {[%clk 0:02:45.7]} 9... Bg7 {[%clk 0:02:51.4]}
10. Nf3 {[%clk 0:02:46.3]} 10... O-O {[%clk 0:02:51.9]} 11. g3 {[%clk
0:02:46.8]} 11... c5 {[%clk 0:02:51.7]} 12. dxc5 {[%clk 0:02:45.5]} 12... Nxc5
{[%clk 0:02:51.8]} 13. c4 {[%clk 0:02:39.7]} 13... Nxd3 {[%clk 0:02:26.8]} 14.
Qxd3 {[%clk 0:02:40.6]} 14... dxc4 {[%clk 0:02:27.3]} 15. Qxc4 {[%clk
0:02:37.2]} 15... Qd5 {[%clk 0:02:22.7]} 16. Qe2 {[%clk 0:02:32.4]} 16... Qh5
{[%clk 0:02:19.7]} 17. Kg2 {[%clk 0:02:25.8]} 17... Rfd8 {[%clk 0:02:17.9]} 18.
Rfd1 {[%clk 0:02:19.2]} 18... h6 {[%clk 0:02:16.6]} 19. h3 {[%clk 0:02:12.5]}
19... Nd5 {[%clk 0:02:03.8]} 20. Bxg7 {[%clk 0:02:05.6]} 20... Kxg7 {[%clk
0:02:04.7]} 21. Rac1 {[%clk 0:02:03.6]} 21... Qf5 {[%clk 0:01:51]} 22. Rd4
{[%clk 0:01:23.2]} 22... Rac8 {[%clk 0:01:43.7]} 23. Rcd1 {[%clk 0:01:20]} 23...
Rc2 {[%clk 0:01:35.2]} 24. R1d2 {[%clk 0:01:20.5]} 24... Rdc8 {[%clk 0:01:33.8]}
25. Rxd5 {[%clk 0:01:09.7]} 25... exd5 {[%clk 0:01:20.5]} 26. Nd4 {[%clk
0:01:09.5]} 26... Qe4+ {[%clk 0:00:15.6]} 27. Qxe4 {[%clk 0:01:06.9]} 27... Rxd2
{[%clk 0:00:16]} 28. Qe5+ {[%clk 0:01:03.7]} 28... Kg8 {[%clk 0:00:15.4]} 29.
Ne6 {[%clk 0:01:03]} 1-0

[Event "Early-Titled-Tuesday-Blitz-January-23-2024"]
[Site "Chess.com"]
[Date "2024.01.23"]
[Round "7"]
[White "Alex_Sahakyan2006"]
[Black "colegiodemadrid"]
[Result "0-1"]
[WhiteElo "2706"]
[BlackElo "2505"]
[TimeControl "180+1"]
[EndTime "9:16:34 PST"]
[Termination "colegiodemadrid won by resignation"]

1. d4 {[%clk 0:03:00.9]} 1... d5 {[%clk 0:02:54.5]} 2. c4 {[%clk 0:03:00.9]}
2... e6 {[%clk 0:02:54.1]} 3. Nf3 {[%clk 0:02:59.4]} 3... Nf6 {[%clk 0:02:54.1]}
4. Nc3 {[%clk 0:02:59.6]} 4... Be7 {[%clk 0:02:52.2]} 5. cxd5 {[%clk 0:02:57.5]}
5... exd5 {[%clk 0:02:51.9]} 6. Bg5 {[%clk 0:02:56.9]} 6... c6 {[%clk
0:02:51.7]} 7. e3 {[%clk 0:02:57]} 7... Nbd7 {[%clk 0:02:51.7]} 8. Bd3 {[%clk
0:02:54.7]} 8... h6 {[%clk 0:02:52.1]} 9. Bh4 {[%clk 0:02:49.3]} 9... Nh5 {[%clk
0:02:52.1]} 10. Bxe7 {[%clk 0:02:47.9]} 10... Qxe7 {[%clk 0:02:53]} 11. O-O
{[%clk 0:02:46.6]} 11... O-O {[%clk 0:02:51.4]} 12. Rb1 {[%clk 0:02:41.6]} 12...
a5 {[%clk 0:02:49.1]} 13. a3 {[%clk 0:02:41.8]} 13... Nhf6 {[%clk 0:02:47.6]}
14. Qc2 {[%clk 0:02:37.5]} 14... Re8 {[%clk 0:02:45.7]} 15. b4 {[%clk
0:02:31.6]} 15... axb4 {[%clk 0:02:46.6]} 16. axb4 {[%clk 0:02:32.5]} 16... b5
{[%clk 0:02:40]} 17. Rfe1 {[%clk 0:02:28.5]} 17... Nb6 {[%clk 0:02:38]} 18. e4
{[%clk 0:02:28.4]} 18... Be6 {[%clk 0:02:26]} 19. e5 {[%clk 0:01:38.6]} 19...
Nfd7 {[%clk 0:02:22.4]} 20. Ne2 {[%clk 0:01:35.7]} 20... Nc4 {[%clk 0:02:21.5]}
21. Bxc4 {[%clk 0:01:29.8]} 21... dxc4 {[%clk 0:02:19.9]} 22. Nf4 {[%clk
0:01:17.4]} 22... Nb6 {[%clk 0:02:19.7]} 23. h3 {[%clk 0:00:46.7]} 23... Ra4
{[%clk 0:02:17.7]} 24. Qd2 {[%clk 0:00:36.6]} 24... Rea8 {[%clk 0:02:10.8]} 25.
Nh5 {[%clk 0:00:36.1]} 25... Nd5 {[%clk 0:02:06.2]} 26. Re4 {[%clk 0:00:13]}
26... c3 {[%clk 0:02:04.4]} 27. Qc1 {[%clk 0:00:11]} 27... Bf5 {[%clk
0:01:53.7]} 28. Rh4 {[%clk 0:00:10.9]} 28... Qf8 {[%clk 0:01:35.1]} 29. Kh2
{[%clk 0:00:02.6]} 29... Bg6 {[%clk 0:01:28]} 30. Ng3 {[%clk 0:00:01.7]} 30...
Bxb1 {[%clk 0:01:25]} 31. Qxb1 {[%clk 0:00:02.6]} 31... Ra2 {[%clk 0:01:22.2]}
32. Qe4 {[%clk 0:00:01.8]} 32... c2 {[%clk 0:01:20.7]} 33. Ne2 {[%clk
0:00:02.6]} 33... Nc3 {[%clk 0:01:18.4]} 34. Ng5 {[%clk 0:00:02.3]} 34... Nxe4
{[%clk 0:01:11.6]} 0-1

[Event "Early-Titled-Tuesday-Blitz-January-23-2024"]
[Site "Chess.com"]
[Date "2024.01.23"]
[Round "7"]
[White "carloseduar100"]
[Black "leepday"]
[Result "1-0"]
[WhiteElo "2292"]
[BlackElo "2136"]
[TimeControl "180+1"]
[EndTime "9:16:38 PST"]
[Termination "carloseduar100 won by resignation"]

1. e4 {[%clk 0:03:00.9]} 1... c6 {[%clk 0:02:59.9]} 2. Nf3 {[%clk 0:03:00.2]}
2... d5 {[%clk 0:03:00.1]} 3. Nc3 {[%clk 0:03:00.9]} 3... Bg4 {[%clk 0:02:56.6]}
4. d4 {[%clk 0:03:00.5]} 4... Bxf3 {[%clk 0:02:49]} 5. Qxf3 {[%clk 0:02:59.1]}
5... dxe4 {[%clk 0:02:45.9]} 6. Nxe4 {[%clk 0:02:58.7]} 6... Nf6 {[%clk
0:02:45.2]} 7. Nxf6+ {[%clk 0:02:46.1]} 7... exf6 {[%clk 0:02:40.9]} 8. c3
{[%clk 0:02:46.2]} 8... Bd6 {[%clk 0:02:39.1]} 9. Bc4 {[%clk 0:02:45.1]} 9...
O-O {[%clk 0:02:38.3]} 10. O-O {[%clk 0:02:45.2]} 10... Nd7 {[%clk 0:02:35]} 11.
h3 {[%clk 0:02:44.9]} 11... Re8 {[%clk 0:02:12.7]} 12. Bd2 {[%clk 0:02:42.9]}
12... Nf8 {[%clk 0:02:12.8]} 13. Rfe1 {[%clk 0:02:42.4]} 13... Bc7 {[%clk
0:02:03.7]} 14. g3 {[%clk 0:02:40.9]} 14... Qd6 {[%clk 0:01:59.7]} 15. Kg2
{[%clk 0:02:40.9]} 15... Rad8 {[%clk 0:01:55.8]} 16. Rad1 {[%clk 0:02:37.1]}
16... Rxe1 {[%clk 0:01:52.1]} 17. Rxe1 {[%clk 0:02:37.1]} 17... Qd7 {[%clk
0:01:52.4]} 18. Bb3 {[%clk 0:02:33.7]} 18... Re8 {[%clk 0:01:51.9]} 19. Rd1
{[%clk 0:02:26.9]} 19... a5 {[%clk 0:01:40.7]} 20. Be3 {[%clk 0:02:18.7]} 20...
Bb8 {[%clk 0:01:39.5]} 21. d5 {[%clk 0:02:12.6]} 21... cxd5 {[%clk 0:01:31.2]}
22. Rxd5 {[%clk 0:02:05]} 22... Qc6 {[%clk 0:01:28.8]} 23. Rxa5 {[%clk
0:01:59.7]} 23... Qxf3+ {[%clk 0:01:26.5]} 24. Kxf3 {[%clk 0:01:59.3]} 24... Ne6
{[%clk 0:01:25.8]} 25. Rb5 {[%clk 0:01:55.9]} 25... Bd6 {[%clk 0:01:25]} 26.
Bxe6 {[%clk 0:01:51.6]} 26... fxe6 {[%clk 0:01:23.6]} 27. Rxb7 {[%clk
0:01:52.1]} 27... Ra8 {[%clk 0:01:19.4]} 28. a3 {[%clk 0:01:51.3]} 28... e5
{[%clk 0:01:13.8]} 29. Rd7 {[%clk 0:01:42.4]} 29... Bf8 {[%clk 0:01:13.4]} 30.
Rb7 {[%clk 0:01:32.8]} 30... Ra4 {[%clk 0:01:12.6]} 31. g4 {[%clk 0:01:27.6]}
31... Ra8 {[%clk 0:01:09.2]} 32. Rb5 {[%clk 0:01:27]} 32... h5 {[%clk
0:01:05.6]} 33. Bc5 {[%clk 0:01:25.3]} 33... Bxc5 {[%clk 0:01:01.6]} 34. Rxc5
{[%clk 0:01:26.2]} 34... Rb8 {[%clk 0:01:02]} 35. b4 {[%clk 0:01:24.5]} 35...
hxg4+ {[%clk 0:01:01.7]} 36. hxg4 {[%clk 0:01:24]} 36... Ra8 {[%clk 0:01:02.6]}
37. Rc7 {[%clk 0:01:07.4]} 37... Rxa3 {[%clk 0:01:00.2]} 38. Ke4 {[%clk
0:01:08]} 38... Ra2 {[%clk 0:00:58.8]} 39. f3 {[%clk 0:01:07.9]} 39... Rb2
{[%clk 0:00:57.4]} 40. Kf5 {[%clk 0:01:04.8]} 40... Rh2 {[%clk 0:00:53.7]} 41.
b5 {[%clk 0:01:03.6]} 41... Rh3 {[%clk 0:00:53.3]} 42. b6 {[%clk 0:01:02.2]}
42... Rxf3+ {[%clk 0:00:53.1]} 43. Kg6 {[%clk 0:01:02.6]} 43... Rxc3 {[%clk
0:00:51.9]} 44. Rxc3 {[%clk 0:00:59.9]} 1-0

[Event "Early-Titled-Tuesday-Blitz-January-23-2024"]
[Site "Chess.com"]
[Date "2024.01.23"]
[Round "7"]
[White "Yushko_Olga"]
[Black "RantomOpening"]
[Result "0-1"]
[WhiteElo "2178"]
[BlackElo "2523"]
[TimeControl "180+1"]
[EndTime "9:16:39 PST"]
[Termination "RantomOpening won by resignation"]

1. d4 {[%clk 0:02:58.2]} 1... d5 {[%clk 0:03:00]} 2. c4 {[%clk 0:02:58.5]} 2...
e6 {[%clk 0:03:00.3]} 3. cxd5 {[%clk 0:02:58.4]} 3... exd5 {[%clk 0:03:00.6]} 4.
Nc3 {[%clk 0:02:59.1]} 4... c6 {[%clk 0:03:01]} 5. Bg5 {[%clk 0:02:59.3]} 5...
Qxg5 {[%clk 0:03:00.7]} 6. Nf3 {[%clk 0:02:58.5]} 6... Qd8 {[%clk 0:03:00.9]} 7.
e3 {[%clk 0:02:58.3]} 7... Nf6 {[%clk 0:03:01.1]} 8. Bd3 {[%clk 0:02:58.8]} 8...
Bd6 {[%clk 0:02:59.3]} 9. O-O {[%clk 0:02:58.2]} 9... O-O {[%clk 0:02:59.6]} 10.
Rc1 {[%clk 0:02:56.8]} 10... Bg4 {[%clk 0:02:59.6]} 11. Be2 {[%clk 0:02:56.3]}
11... Nbd7 {[%clk 0:02:58.4]} 12. a3 {[%clk 0:02:55.6]} 12... Re8 {[%clk
0:02:57.1]} 13. b4 {[%clk 0:02:55.3]} 13... Ne4 {[%clk 0:02:56.8]} 14. b5 {[%clk
0:02:50.2]} 14... Bxa3 {[%clk 0:02:55]} 15. Rc2 {[%clk 0:02:50.1]} 15... Nxc3
{[%clk 0:02:52.7]} 16. Rxc3 {[%clk 0:02:51]} 16... Bb4 {[%clk 0:02:52.8]} 17.
Rb3 {[%clk 0:02:44.4]} 17... Bd6 {[%clk 0:02:52.7]} 18. bxc6 {[%clk 0:02:41]}
18... bxc6 {[%clk 0:02:52.7]} 19. Rc3 {[%clk 0:02:37.3]} 19... c5 {[%clk
0:02:52.7]} 20. dxc5 {[%clk 0:02:36.9]} 20... Nxc5 {[%clk 0:02:52.7]} 21. h3
{[%clk 0:02:33.4]} 21... Bxf3 {[%clk 0:02:52.1]} 22. Bxf3 {[%clk 0:02:34.3]}
22... Ne4 {[%clk 0:02:49.3]} 23. Rd3 {[%clk 0:02:34.3]} 23... Nf6 {[%clk
0:02:47.5]} 24. Qb3 {[%clk 0:02:27.6]} 24... Qe7 {[%clk 0:02:44.3]} 25. Ra1
{[%clk 0:02:17.9]} 25... Qe5 {[%clk 0:02:43.6]} 26. Ra6 {[%clk 0:02:08.3]} 26...
Rab8 {[%clk 0:02:35.1]} 27. Qa2 {[%clk 0:01:50.1]} 27... Rb2 {[%clk 0:02:33.7]}
28. Qxb2 {[%clk 0:01:34.6]} 28... Qxb2 {[%clk 0:02:32.5]} 29. Rxd6 {[%clk
0:01:35.4]} 29... Rc8 {[%clk 0:02:20.5]} 30. g4 {[%clk 0:01:17.3]} 30... h6
{[%clk 0:02:17.9]} 31. h4 {[%clk 0:01:11.5]} 31... Rc1+ {[%clk 0:02:17.3]} 32.
Kg2 {[%clk 0:01:11.3]} 32... Rc2 {[%clk 0:02:12.8]} 33. g5 {[%clk 0:01:08.2]}
33... Rxf2+ {[%clk 0:02:12.3]} 34. Kg3 {[%clk 0:01:07.7]} 34... Rxf3+ {[%clk
0:02:11.8]} 35. Kxf3 {[%clk 0:01:06.9]} 35... Ne4 {[%clk 0:02:12.1]} 36. R6xd5
{[%clk 0:01:01.2]} 36... Nc3 {[%clk 0:01:58.5]} 37. Rd8+ {[%clk 0:00:39.5]}
37... Kh7 {[%clk 0:01:58.3]} 38. Rd2 {[%clk 0:00:39.8]} 38... Qb7+ {[%clk
0:01:57.3]} 39. Kg4 {[%clk 0:00:23]} 39... h5+ {[%clk 0:01:57.3]} 40. Kh3 {[%clk
0:00:22.1]} 40... Qf3+ {[%clk 0:01:56.7]} 41. Kh2 {[%clk 0:00:21.6]} 41... Ne4
{[%clk 0:01:56.8]} 42. Rg2 {[%clk 0:00:15.1]} 42... Nf2 {[%clk 0:01:53.6]} 43.
Kg1 {[%clk 0:00:12.4]} 43... Ng4 {[%clk 0:01:52.9]} 44. Rdd2 {[%clk 0:00:10.7]}
44... Qxe3+ {[%clk 0:01:52.9]} 45. Kh1 {[%clk 0:00:11.1]} 45... Qe1+ {[%clk
0:01:52.6]} 46. Rg1 {[%clk 0:00:10.9]} 46... Qxh4+ {[%clk 0:01:53.5]} 47. Kg2
{[%clk 0:00:10.1]} 47... Qh2+ {[%clk 0:01:54.4]} 48. Kf3 {[%clk 0:00:09.4]}
48... Qxd2 {[%clk 0:01:55.3]} 0-1

[Event "Early-Titled-Tuesday-Blitz-January-23-2024"]
[Site "Chess.com"]
[Date "2024.01.23"]
[Round "7"]
[White "Casper"]
[Black "Rodalquilar"]
[Result "0-1"]
[WhiteElo "2564"]
[BlackElo "2729"]
[TimeControl "180+1"]
[EndTime "9:16:42 PST"]
[Termination "Rodalquilar won by resignation"]

1. Nf3 {[%clk 0:03:00.9]} 1... d5 {[%clk 0:02:59.4]} 2. b3 {[%clk 0:03:01.6]}
2... Bf5 {[%clk 0:02:58.9]} 3. Bb2 {[%clk 0:03:02.3]} 3... e6 {[%clk 0:02:59.4]}
4. e3 {[%clk 0:03:02.9]} 4... Nf6 {[%clk 0:02:59.8]} 5. Be2 {[%clk 0:03:03.3]}
5... h6 {[%clk 0:02:59.7]} 6. O-O {[%clk 0:03:03.4]} 6... Nbd7 {[%clk
0:02:59.1]} 7. c4 {[%clk 0:03:04.1]} 7... c6 {[%clk 0:02:59.3]} 8. Nc3 {[%clk
0:03:04.7]} 8... Bd6 {[%clk 0:02:59.2]} 9. d4 {[%clk 0:03:05.4]} 9... O-O {[%clk
0:02:59]} 10. Bd3 {[%clk 0:03:06]} 10... Bxd3 {[%clk 0:02:47.9]} 11. Qxd3 {[%clk
0:03:06.9]} 11... Qe7 {[%clk 0:02:46.3]} 12. e4 {[%clk 0:03:04.5]} 12... dxc4
{[%clk 0:02:46.6]} 13. bxc4 {[%clk 0:02:59.5]} 13... e5 {[%clk 0:02:46.8]} 14.
Rfe1 {[%clk 0:02:56.9]} 14... exd4 {[%clk 0:02:39.8]} 15. Nxd4 {[%clk
0:02:51.6]} 15... Ne5 {[%clk 0:02:13.1]} 16. Qe2 {[%clk 0:02:51.8]} 16... Bc5
{[%clk 0:02:13.4]} 17. Nf5 {[%clk 0:02:35.4]} 17... Qe6 {[%clk 0:02:13.7]} 18.
Rad1 {[%clk 0:02:34.9]} 18... Qxc4 {[%clk 0:02:00.6]} 19. Qxc4 {[%clk 0:01:50]}
19... Nxc4 {[%clk 0:02:00]} 20. Ba1 {[%clk 0:01:50.9]} 20... Ng4 {[%clk
0:01:50.4]} 21. Re2 {[%clk 0:01:43.6]} 21... Rfd8 {[%clk 0:01:49.4]} 22. Rb1
{[%clk 0:01:42.5]} 22... Nxf2 {[%clk 0:01:15.9]} 23. Rxf2 {[%clk 0:01:41.9]}
23... Rd2 {[%clk 0:01:16]} 24. Rf1 {[%clk 0:01:33.9]} 24... Rad8 {[%clk
0:00:37.8]} 25. Na4 {[%clk 0:00:54.8]} 25... Rxf2 {[%clk 0:00:31.3]} 26. Nxc5
{[%clk 0:00:49.5]} 26... Rxf1+ {[%clk 0:00:31.7]} 27. Kxf1 {[%clk 0:00:50.4]}
27... Rd1+ {[%clk 0:00:31.7]} 28. Ke2 {[%clk 0:00:51.1]} 28... Rxa1 {[%clk
0:00:31.7]} 29. Nxb7 {[%clk 0:00:51.8]} 29... Rxa2+ {[%clk 0:00:31.7]} 30. Kf3
{[%clk 0:00:51.3]} 30... Ne5+ {[%clk 0:00:29.2]} 31. Kg3 {[%clk 0:00:51.6]}
31... a5 {[%clk 0:00:26.4]} 32. Kf4 {[%clk 0:00:50.2]} 32... f6 {[%clk 0:00:24]}
33. Nd8 {[%clk 0:00:47.5]} 33... a4 {[%clk 0:00:22.9]} 34. Ne7+ {[%clk
0:00:47.6]} 34... Kf8 {[%clk 0:00:22.2]} 35. Nexc6 {[%clk 0:00:48.5]} 35... Nxc6
{[%clk 0:00:21.8]} 36. Nxc6 {[%clk 0:00:49.4]} 36... a3 {[%clk 0:00:22.4]} 0-1